[Event "Titled Tuesday Blitz August 09 Late 2022"]
[White "Kravtsiv, Martyn"]
[Black "Pinheiro, Iung Alicio de O."]
[WhiteFideId "14113147"]
[BlackFideId "2104350"]
[WhiteElo "2694"]
[BlackElo "2283"]
[Result "0-1"]
[Round "11"]
[TimeControl "180+1"]
[Date "2022.08.09"]
[WhiteClock "0:00:18"]
[BlackClock "0:00:27"]

1. e4 {[%clk 0:03:00]}  c5 {[%clk 0:02:58]} 2. Nf3 {[%clk 0:03:00]}  Nc6 {[%clk 0:02:58]} 3. d4 {[%clk 0:02:59]}  cxd4 {[%clk 0:02:58]} 4. Nxd4 {[%clk 0:02:59]}  e5 {[%clk 0:02:58]} 5. Nb5 {[%clk 0:02:59]}  d6 {[%clk 0:02:58]} 6. N1c3 {[%clk 0:02:58]}  a6 {[%clk 0:02:58]} 7. Na3 {[%clk 0:02:58]}  b5 {[%clk 0:02:59]} 8. Nd5 {[%clk 0:02:58]}  Nge7 {[%clk 0:02:58]} 9. c4 {[%clk 0:02:57]}  Nxd5 {[%clk 0:02:57]} 10. exd5 {[%clk 0:02:57]}  Nd4 {[%clk 0:02:57]} 11. cxb5 {[%clk 0:02:56]}  Bd7 {[%clk 0:02:57]} 12. bxa6 {[%clk 0:02:54]}  Qa5+ {[%clk 0:02:55]} 13. Bd2 {[%clk 0:02:53]}  Qxd5 {[%clk 0:02:53]} 14. f3 {[%clk 0:02:31]}  Be7 {[%clk 0:02:32]} 15. Bc4 {[%clk 0:02:29]}  Bh4+ {[%clk 0:02:17]} 16. Kf1 {[%clk 0:02:23]}  Qc6 {[%clk 0:02:06]} 17. Rc1 {[%clk 0:02:20]}  Qb6 {[%clk 0:02:05]} 18. Be3 {[%clk 0:02:14]}  O-O {[%clk 0:01:48]} 19. Bxd4 {[%clk 0:02:00]}  exd4 {[%clk 0:01:46]} 20. Qb3 {[%clk 0:01:57]}  Qa5 {[%clk 0:01:38]} 21. Qd3 {[%clk 0:01:47]}  Bf5 {[%clk 0:01:26]} 22. Qxd4 {[%clk 0:01:40]}  Bf6 {[%clk 0:01:20]} 23. Qf2 {[%clk 0:01:39]}  Qb4 {[%clk 0:01:16]} 24. Nb5 {[%clk 0:00:48]}  d5 {[%clk 0:01:00]} 25. Be2 {[%clk 0:00:38]}  Qxb2 {[%clk 0:00:57]} 26. Re1 {[%clk 0:00:31]}  Rxa6 {[%clk 0:00:48]} 27. g4 {[%clk 0:00:25]}  Bd7 {[%clk 0:00:45]} 28. Nc7 {[%clk 0:00:24]}  Rd6 {[%clk 0:00:40]} 29. Qc5 {[%clk 0:00:20]}  Rc6 {[%clk 0:00:32]} 30. Qa7 {[%clk 0:00:20]}  Bd4 {[%clk 0:00:31]} 31. Qa5 {[%clk 0:00:18]}  Bc3 {[%clk 0:00:28]} 32. Qxd5 {[%clk 0:00:18]}  Rxc7 {[%clk 0:00:27]} 0-1


[Site "https://www.chess.com"]

[Event "Titled Tuesday Blitz August 09 Late 2022"]
[White "Lobanov, Sergei"]
[Black "Sarana, Alexey"]
[WhiteFideId "24183750"]
[BlackFideId "24133795"]
[WhiteElo "2524"]
[BlackElo "2666"]
[Result "1-0"]
[Round "11"]
[TimeControl "180+1"]
[Date "2022.08.09"]
[WhiteClock "0:00:18"]
[BlackClock "0:00:07"]

1. e4 {[%clk 0:03:00]}  c5 {[%clk 0:03:00]} 2. Nf3 {[%clk 0:03:00]}  d6 {[%clk 0:03:01]} 3. Nc3 {[%clk 0:03:00]}  Nf6 {[%clk 0:03:01]} 4. g3 {[%clk 0:03:00]}  g6 {[%clk 0:02:59]} 5. Bg2 {[%clk 0:03:00]}  Bg7 {[%clk 0:02:59]} 6. O-O {[%clk 0:03:00]}  Nc6 {[%clk 0:03:00]} 7. d4 {[%clk 0:02:56]}  cxd4 {[%clk 0:03:00]} 8. Nxd4 {[%clk 0:02:56]}  Bd7 {[%clk 0:03:00]} 9. h3 {[%clk 0:02:54]}  O-O {[%clk 0:02:59]} 10. Be3 {[%clk 0:02:49]}  Ne5 {[%clk 0:02:58]} 11. b3 {[%clk 0:02:48]}  Rc8 {[%clk 0:02:58]} 12. Nd5 {[%clk 0:02:47]}  Nc6 {[%clk 0:02:48]} 13. c4 {[%clk 0:02:42]}  e6 {[%clk 0:02:44]} 14. Nxf6+ {[%clk 0:02:37]}  Qxf6 {[%clk 0:02:45]} 15. Nxc6 {[%clk 0:02:34]}  Bxc6 {[%clk 0:02:46]} 16. Qxd6 {[%clk 0:02:18]}  Rfd8 {[%clk 0:02:46]} 17. Qa3 {[%clk 0:02:04]}  a6 {[%clk 0:02:37]} 18. Rad1 {[%clk 0:02:02]}  h5 {[%clk 0:02:36]} 19. h4 {[%clk 0:01:59]}  Qc3 {[%clk 0:02:34]} 20. Qc1 {[%clk 0:01:57]}  Qa5 {[%clk 0:02:33]} 21. Qc2 {[%clk 0:01:52]}  b5 {[%clk 0:02:33]} 22. c5 {[%clk 0:01:43]}  b4 {[%clk 0:02:34]} 23. Rxd8+ {[%clk 0:01:25]}  Rxd8 {[%clk 0:02:35]} 24. Rd1 {[%clk 0:01:25]}  Rc8 {[%clk 0:02:35]} 25. Bd4 {[%clk 0:01:16]}  Bxd4 {[%clk 0:02:18]} 26. Rxd4 {[%clk 0:01:16]}  Be8 {[%clk 0:02:18]} 27. Qd2 {[%clk 0:01:14]}  Rb8 {[%clk 0:01:35]} 28. Rc4 {[%clk 0:01:13]}  Rd8 {[%clk 0:01:35]} 29. Rd4 {[%clk 0:01:10]}  Rb8 {[%clk 0:01:35]} 30. Qg5 {[%clk 0:01:02]}  Rc8 {[%clk 0:01:28]} 31. e5 {[%clk 0:00:52]}  Qc7 {[%clk 0:00:41]} 32. g4 {[%clk 0:00:51]}  hxg4 {[%clk 0:00:39]} 33. h5 {[%clk 0:00:51]}  a5 {[%clk 0:00:38]} 34. Qf6 {[%clk 0:00:46]}  gxh5 {[%clk 0:00:24]} 35. Qg5+ {[%clk 0:00:34]}  Kf8 {[%clk 0:00:24]} 36. Qxh5 {[%clk 0:00:34]}  f5 {[%clk 0:00:20]} 37. Qh8+ {[%clk 0:00:30]}  Kf7 {[%clk 0:00:19]} 38. Qf6+ {[%clk 0:00:30]}  Kg8 {[%clk 0:00:19]} 39. Qxe6+ {[%clk 0:00:30]}  Bf7 {[%clk 0:00:20]} 40. Qxf5 {[%clk 0:00:29]}  Qxc5 {[%clk 0:00:20]} 41. Rxg4+ {[%clk 0:00:29]}  Kf8 {[%clk 0:00:20]} 42. Rf4 {[%clk 0:00:24]}  Rc7 {[%clk 0:00:10]} 43. e6 {[%clk 0:00:22]}  Qd6 {[%clk 0:00:09]} 44. exf7 {[%clk 0:00:20]}  a4 {[%clk 0:00:07]} 45. Qg5 {[%clk 0:00:18]} 1-0


[Site "https://www.chess.com"]

[Event "Titled Tuesday Blitz August 09 Late 2022"]
[White "Pakleza, Zbigniew"]
[Black "Wagner, Dennis"]
[WhiteFideId "1119290"]
[BlackFideId "24650684"]
[WhiteElo "2411"]
[BlackElo "2355"]
[Result "0-1"]
[Round "11"]
[TimeControl "180+1"]
[Date "2022.08.09"]
[WhiteClock "0:00:03"]
[BlackClock "0:00:09"]

1. d4 {[%clk 0:03:00]}  Nf6 {[%clk 0:03:00]} 2. Nf3 {[%clk 0:03:01]}  d5 {[%clk 0:03:00]} 3. Bf4 {[%clk 0:03:01]}  e6 {[%clk 0:02:59]} 4. e3 {[%clk 0:03:01]}  Bd6 {[%clk 0:03:00]} 5. Bg3 {[%clk 0:03:02]}  O-O {[%clk 0:02:59]} 6. Nbd2 {[%clk 0:03:02]}  c5 {[%clk 0:02:58]} 7. c3 {[%clk 0:03:03]}  Qc7 {[%clk 0:02:58]} 8. Ne5 {[%clk 0:03:02]}  Nc6 {[%clk 0:02:56]} 9. f4 {[%clk 0:03:01]}  Ne4 {[%clk 0:02:55]} 10. Nxe4 {[%clk 0:03:01]}  dxe4 {[%clk 0:02:55]} 11. Nc4 {[%clk 0:02:59]}  cxd4 {[%clk 0:02:47]} 12. cxd4 {[%clk 0:02:49]}  Ne7 {[%clk 0:02:18]} 13. a3 {[%clk 0:02:24]}  Nf5 {[%clk 0:02:10]} 14. Bf2 {[%clk 0:02:24]}  Be7 {[%clk 0:02:09]} 15. g4 {[%clk 0:02:17]}  Nh4 {[%clk 0:02:00]} 16. Be2 {[%clk 0:02:14]}  Bd7 {[%clk 0:01:42]} 17. Rc1 {[%clk 0:02:10]}  Bb5 {[%clk 0:01:34]} 18. O-O {[%clk 0:01:58]}  Qd8 {[%clk 0:01:20]} 19. Bxh4 {[%clk 0:01:50]}  Bxh4 {[%clk 0:01:19]} 20. Qb3 {[%clk 0:01:50]}  Bc6 {[%clk 0:01:16]} 21. g5 {[%clk 0:01:28]}  Bd5 {[%clk 0:01:12]} 22. Kh1 {[%clk 0:01:12]}  Rc8 {[%clk 0:01:11]} 23. Qb4 {[%clk 0:01:07]}  f6 {[%clk 0:00:49]} 24. gxf6 {[%clk 0:01:05]}  Bxf6 {[%clk 0:00:49]} 25. Qd6 {[%clk 0:00:51]}  Qe8 {[%clk 0:00:36]} 26. Ne5 {[%clk 0:00:45]}  Be7 {[%clk 0:00:26]} 27. Qd7 {[%clk 0:00:44]}  Qxd7 {[%clk 0:00:21]} 28. Nxd7 {[%clk 0:00:45]}  Rfd8 {[%clk 0:00:21]} 29. Ne5 {[%clk 0:00:45]}  Bd6 {[%clk 0:00:18]} 30. Kg2 {[%clk 0:00:44]}  Kf8 {[%clk 0:00:13]} 31. Nc4 {[%clk 0:00:43]}  Bb8 {[%clk 0:00:10]} 32. Kf2 {[%clk 0:00:42]}  Ke7 {[%clk 0:00:10]} 33. Nd2 {[%clk 0:00:37]}  g5 {[%clk 0:00:09]} 34. fxg5 {[%clk 0:00:31]}  Rxc1 {[%clk 0:00:09]} 35. Rxc1 {[%clk 0:00:31]}  Rg8 {[%clk 0:00:09]} 36. h4 {[%clk 0:00:30]}  h6 {[%clk 0:00:10]} 37. Rg1 {[%clk 0:00:28]}  hxg5 {[%clk 0:00:08]} 38. Rxg5 {[%clk 0:00:28]}  Rf8+ {[%clk 0:00:08]} 39. Ke1 {[%clk 0:00:25]}  Rh8 {[%clk 0:00:09]} 40. h5 {[%clk 0:00:25]}  Kf6 {[%clk 0:00:08]} 41. Rg6+ {[%clk 0:00:24]}  Kf7 {[%clk 0:00:09]} 42. Rg1 {[%clk 0:00:23]}  Bc7 {[%clk 0:00:09]} 43. Nf1 {[%clk 0:00:18]}  Ba5+ {[%clk 0:00:07]} 44. Kf2 {[%clk 0:00:17]}  Ke7 {[%clk 0:00:04]} 45. Ng3 {[%clk 0:00:18]}  Rf8+ {[%clk 0:00:04]} 46. Kg2 {[%clk 0:00:19]}  Bd2 {[%clk 0:00:03]} 47. Nf1 {[%clk 0:00:16]}  Bc1 {[%clk 0:00:04]} 48. Rh1 {[%clk 0:00:13]}  Bxb2 {[%clk 0:00:04]} 49. a4 {[%clk 0:00:14]}  Rg8+ {[%clk 0:00:02]} 50. Kf2 {[%clk 0:00:11]}  Rf8+ {[%clk 0:00:03]} 51. Kg2 {[%clk 0:00:10]}  Ba3 {[%clk 0:00:03]} 52. h6 {[%clk 0:00:09]}  Rg8+ {[%clk 0:00:04]} 53. Kf2 {[%clk 0:00:09]}  Kf6 {[%clk 0:00:04]} 54. Ng3 {[%clk 0:00:08]}  Kg6 {[%clk 0:00:04]} 55. Nh5 {[%clk 0:00:07]}  Rf8+ {[%clk 0:00:04]} 56. Nf4+ {[%clk 0:00:08]}  Kh7 {[%clk 0:00:04]} 57. Kg3 {[%clk 0:00:07]}  Rf6 {[%clk 0:00:03]} 58. Bg4 {[%clk 0:00:05]}  Bd6 {[%clk 0:00:03]} 59. Rb1 {[%clk 0:00:05]}  Rxh6 {[%clk 0:00:03]} 60. a5 {[%clk 0:00:03]}  Rf6 {[%clk 0:00:03]} 61. Rb2 {[%clk 0:00:03]}  Rf7 {[%clk 0:00:03]} 62. Kh4 {[%clk 0:00:03]}  Bxf4 {[%clk 0:00:03]} 63. exf4 {[%clk 0:00:04]}  Rxf4 {[%clk 0:00:03]} 64. Kg5 {[%clk 0:00:05]}  Rf7 {[%clk 0:00:03]} 65. Bh5 {[%clk 0:00:05]}  Rf5+ {[%clk 0:00:03]} 66. Kh4 {[%clk 0:00:05]}  Kh6 {[%clk 0:00:04]} 67. Bg4 {[%clk 0:00:05]}  Rf4 {[%clk 0:00:04]} 68. Kg3 {[%clk 0:00:06]}  Kg5 {[%clk 0:00:04]} 69. Bh3 {[%clk 0:00:05]}  Rf3+ {[%clk 0:00:04]} 70. Kh2 {[%clk 0:00:05]}  e3 {[%clk 0:00:05]} 71. Rg2+ {[%clk 0:00:03]}  Kf4 {[%clk 0:00:05]} 72. Rg4+ {[%clk 0:00:04]}  Kf5 {[%clk 0:00:05]} 73. Rg8+ {[%clk 0:00:02]}  Kf6 {[%clk 0:00:05]} 74. Rf8+ {[%clk 0:00:02]}  Ke7 {[%clk 0:00:06]} 75. Rxf3 {[%clk 0:00:02]}  Bxf3 {[%clk 0:00:07]} 76. Kg3 {[%clk 0:00:02]}  e2 {[%clk 0:00:07]} 77. Kf2 {[%clk 0:00:03]}  Kd6 {[%clk 0:00:07]} 78. Ke1 {[%clk 0:00:01]}  Kd5 {[%clk 0:00:08]} 79. Kd2 {[%clk 0:00:02]}  b6 {[%clk 0:00:08]} 80. a6 {[%clk 0:00:02]}  Kxd4 {[%clk 0:00:08]} 81. Bxe6 {[%clk 0:00:02]}  b5 {[%clk 0:00:09]} 82. Bd7 {[%clk 0:00:02]}  Kc5 {[%clk 0:00:09]} 83. Bf5 {[%clk 0:00:02]}  Kb6 {[%clk 0:00:10]} 84. Be4 {[%clk 0:00:03]}  Bxe4 {[%clk 0:00:09]} 0-1


[Site "https://www.chess.com"]

[Event "Titled Tuesday Blitz August 09 Late 2022"]
[White "Pulpan, Jakub"]
[Black "Pham, Khoi"]
[WhiteFideId "302759"]
[BlackFideId "1054988"]
[WhiteElo "2451"]
[BlackElo "2373"]
[Result "1-0"]
[Round "11"]
[TimeControl "180+1"]
[Date "2022.08.09"]
[WhiteClock "0:02:42"]
[BlackClock "0:01:37"]

1. Nf3 {[%clk 0:03:00]}  f5 {[%clk 0:02:59]} 2. d3 {[%clk 0:02:59]}  Nc6 {[%clk 0:02:56]} 3. d4 {[%clk 0:02:59]}  e6 {[%clk 0:02:54]} 4. c4 {[%clk 0:02:58]}  Nf6 {[%clk 0:02:52]} 5. Nc3 {[%clk 0:02:58]}  Be7 {[%clk 0:02:52]} 6. d5 {[%clk 0:02:52]}  Nb8 {[%clk 0:02:49]} 7. e3 {[%clk 0:02:50]}  O-O {[%clk 0:02:47]} 8. Be2 {[%clk 0:02:51]}  b6 {[%clk 0:02:42]} 9. O-O {[%clk 0:02:49]}  Na6 {[%clk 0:02:36]} 10. Nd4 {[%clk 0:02:49]}  Nc5 {[%clk 0:02:27]} 11. Bf3 {[%clk 0:02:43]}  Bb7 {[%clk 0:02:05]} 12. dxe6 {[%clk 0:02:41]}  Bxf3 {[%clk 0:01:56]} 13. Qxf3 {[%clk 0:02:42]}  dxe6 {[%clk 0:01:51]} 14. b4 {[%clk 0:02:42]}  Nfe4 {[%clk 0:01:47]} 15. bxc5 {[%clk 0:02:41]}  Nxc3 {[%clk 0:01:47]} 16. Nxe6 {[%clk 0:02:41]}  Qd3 {[%clk 0:01:47]} 17. Nxf8 {[%clk 0:02:41]}  Ne2+ {[%clk 0:01:42]} 18. Kh1 {[%clk 0:02:41]}  Ng3+ {[%clk 0:01:36]} 19. fxg3 {[%clk 0:02:42]}  Qxf1+ {[%clk 0:01:37]} 20. Qxf1 {[%clk 0:02:42]} 1-0


[Site "https://www.chess.com"]

[Event "Titled Tuesday Blitz August 09 Late 2022"]
[White "Roman, Rodrigo"]
[Black "Navarrete Mendez, Gonzalo Alberto"]
[WhiteFideId "3701220"]
[BlackFideId "5106850"]
[WhiteElo "2001"]
[BlackElo "2261"]
[Result "0-1"]
[Round "11"]
[TimeControl "180+1"]
[Date "2022.08.09"]
[WhiteClock "0:00:16"]
[BlackClock "0:01:00"]

1. e4 {[%clk 0:03:00]}  e5 {[%clk 0:03:00]} 2. Nf3 {[%clk 0:02:59]}  Nc6 {[%clk 0:03:00]} 3. Bc4 {[%clk 0:02:19]}  Nf6 {[%clk 0:02:57]} 4. d3 {[%clk 0:01:58]}  Be7 {[%clk 0:02:57]} 5. O-O {[%clk 0:01:58]}  O-O {[%clk 0:02:56]} 6. c3 {[%clk 0:01:59]}  d5 {[%clk 0:02:54]} 7. exd5 {[%clk 0:01:59]}  Nxd5 {[%clk 0:02:55]} 8. Re1 {[%clk 0:02:00]}  Bg4 {[%clk 0:02:55]} 9. h3 {[%clk 0:01:59]}  Bh5 {[%clk 0:02:55]} 10. g4 {[%clk 0:01:58]}  Bg6 {[%clk 0:02:55]} 11. Nxe5 {[%clk 0:01:59]}  Nxe5 {[%clk 0:02:56]} 12. Rxe5 {[%clk 0:01:59]}  c6 {[%clk 0:02:56]} 13. d4 {[%clk 0:01:54]}  Bd6 {[%clk 0:02:56]} 14. Re1 {[%clk 0:01:51]}  Qh4 {[%clk 0:02:47]} 15. Qf3 {[%clk 0:01:39]}  Kh8 {[%clk 0:02:34]} 16. Bxd5 {[%clk 0:01:17]}  cxd5 {[%clk 0:02:34]} 17. Bf4 {[%clk 0:01:15]}  Bxf4 {[%clk 0:02:15]} 18. Qxf4 {[%clk 0:01:16]}  f5 {[%clk 0:02:15]} 19. Qg3 {[%clk 0:01:12]}  Qf6 {[%clk 0:02:03]} 20. g5 {[%clk 0:01:11]}  Qb6 {[%clk 0:02:01]} 21. Nd2 {[%clk 0:00:44]}  f4 {[%clk 0:01:58]} 22. Qf3 {[%clk 0:00:43]}  Qxb2 {[%clk 0:01:51]} 23. Rad1 {[%clk 0:00:36]}  Rad8 {[%clk 0:01:39]} 24. Re7 {[%clk 0:00:33]}  Qc2 {[%clk 0:01:36]} 25. h4 {[%clk 0:00:23]}  Rf7 {[%clk 0:01:23]} 26. Rxf7 {[%clk 0:00:20]}  Bxf7 {[%clk 0:01:24]} 27. Nf1 {[%clk 0:00:20]}  Bg6 {[%clk 0:01:20]} 28. Re1 {[%clk 0:00:19]}  Be4 {[%clk 0:01:19]} 29. Qxf4 {[%clk 0:00:18]}  Qxc3 {[%clk 0:01:19]} 30. Qe3 {[%clk 0:00:16]}  Qc8 {[%clk 0:01:15]} 31. Ng3 {[%clk 0:00:15]}  Qg4 {[%clk 0:01:11]} 32. h5 {[%clk 0:00:11]}  Rf8 {[%clk 0:01:07]} 33. Kf1 {[%clk 0:00:05]}  Rf3 {[%clk 0:01:01]} 34. Qd2 {[%clk 0:00:02]}  Qxg3 {[%clk 0:01:00]} 35. Rxe4 {[%clk 0:00:02]}  dxe4 {[%clk 0:00:59]} 36. d5 {[%clk 0:00:03]}  Qh3+ {[%clk 0:00:57]} 37. Ke2 {[%clk 0:00:02]}  Rd3 {[%clk 0:00:57]} 38. Qf4 {[%clk 0:00:02]}  Qf3+ {[%clk 0:00:57]} 39. Qxf3 {[%clk 0:00:02]}  Rxf3 {[%clk 0:00:57]} 40. d6 {[%clk 0:00:03]}  Rd3 {[%clk 0:00:58]} 41. f3 {[%clk 0:00:03]}  Rxd6 {[%clk 0:00:58]} 42. fxe4 {[%clk 0:00:03]}  Ra6 {[%clk 0:00:59]} 43. Ke3 {[%clk 0:00:04]}  Rxa2 {[%clk 0:00:59]} 44. Kf4 {[%clk 0:00:05]}  Re2 {[%clk 0:00:58]} 45. g6 {[%clk 0:00:06]}  hxg6 {[%clk 0:00:58]} 46. hxg6 {[%clk 0:00:06]}  Kg8 {[%clk 0:00:59]} 47. Kf5 {[%clk 0:00:07]}  Kf8 {[%clk 0:00:59]} 48. e5 {[%clk 0:00:08]}  Ke7 {[%clk 0:00:59]} 49. Kg5 {[%clk 0:00:08]}  Rxe5+ {[%clk 0:00:57]} 50. Kf4 {[%clk 0:00:09]}  Kf6 {[%clk 0:00:57]} 51. Kg4 {[%clk 0:00:09]}  a5 {[%clk 0:00:57]} 52. Kf4 {[%clk 0:00:10]}  a4 {[%clk 0:00:58]} 53. Kg4 {[%clk 0:00:11]}  a3 {[%clk 0:00:59]} 54. Kf4 {[%clk 0:00:12]}  a2 {[%clk 0:00:59]} 55. Kg4 {[%clk 0:00:13]}  a1=Q {[%clk 0:01:00]} 56. Kf4 {[%clk 0:00:14]}  Qa4+ {[%clk 0:01:00]} 57. Kf3 {[%clk 0:00:14]}  Rb5 {[%clk 0:01:00]} 58. Kg2 {[%clk 0:00:15]}  Rb3 {[%clk 0:01:00]} 59. Kf1 {[%clk 0:00:16]}  Qa2 {[%clk 0:01:00]} 0-1


[Site "https://www.chess.com"]

[Event "Titled Tuesday Blitz August 09 Late 2022"]
[White "Rosen, Eric"]
[Black "Kopczynski, Michal"]
[WhiteFideId "2032562"]
[BlackFideId "1124200"]
[WhiteElo "2362"]
[BlackElo "2235"]
[Result "1-0"]
[Round "11"]
[TimeControl "180+1"]
[Date "2022.08.09"]
[WhiteClock "0:00:18"]
[BlackClock "0:00:03"]

1. d4 {[%clk 0:02:57]}  Nf6 {[%clk 0:03:00]} 2. Bf4 {[%clk 0:02:56]}  g6 {[%clk 0:03:00]} 3. Nc3 {[%clk 0:02:54]}  Bg7 {[%clk 0:03:01]} 4. e4 {[%clk 0:02:54]}  d6 {[%clk 0:03:01]} 5. Qd2 {[%clk 0:02:55]}  O-O {[%clk 0:03:02]} 6. O-O-O {[%clk 0:02:55]}  c6 {[%clk 0:03:01]} 7. Bh6 {[%clk 0:02:43]}  b5 {[%clk 0:03:00]} 8. f3 {[%clk 0:02:44]}  b4 {[%clk 0:02:58]} 9. Nce2 {[%clk 0:02:44]}  Qa5 {[%clk 0:02:57]} 10. Kb1 {[%clk 0:02:44]}  Be6 {[%clk 0:02:56]} 11. Nc1 {[%clk 0:02:44]}  Nbd7 {[%clk 0:02:53]} 12. h4 {[%clk 0:02:43]}  Nb6 {[%clk 0:02:36]} 13. h5 {[%clk 0:02:33]}  Na4 {[%clk 0:02:32]} 14. Nb3 {[%clk 0:02:23]}  Bxb3 {[%clk 0:01:57]} 15. cxb3 {[%clk 0:02:18]}  Nb6 {[%clk 0:01:55]} 16. g4 {[%clk 0:02:04]}  Nbd7 {[%clk 0:01:32]} 17. Bc4 {[%clk 0:01:48]}  d5 {[%clk 0:01:26]} 18. Bxg7 {[%clk 0:01:46]}  Kxg7 {[%clk 0:01:25]} 19. hxg6 {[%clk 0:01:27]}  dxc4 {[%clk 0:01:12]} 20. Qh6+ {[%clk 0:01:26]}  Kg8 {[%clk 0:01:12]} 21. g5 {[%clk 0:00:49]}  cxb3 {[%clk 0:00:52]} 22. axb3 {[%clk 0:00:46]}  fxg6 {[%clk 0:00:50]} 23. gxf6 {[%clk 0:00:43]}  Nxf6 {[%clk 0:00:51]} 24. Ne2 {[%clk 0:00:34]}  Rf7 {[%clk 0:00:48]} 25. Rdg1 {[%clk 0:00:24]}  Rg7 {[%clk 0:00:45]} 26. e5 {[%clk 0:00:22]}  Nd5 {[%clk 0:00:45]} 27. Rxg6 {[%clk 0:00:17]}  hxg6 {[%clk 0:00:40]} 28. Qh8+ {[%clk 0:00:18]}  Kf7 {[%clk 0:00:40]} 29. Qxa8 {[%clk 0:00:19]}  Qb5 {[%clk 0:00:33]} 30. Nc1 {[%clk 0:00:18]}  Nc7 {[%clk 0:00:23]} 31. Qc8 {[%clk 0:00:17]}  Ne6 {[%clk 0:00:19]} 32. Rh8 {[%clk 0:00:17]}  c5 {[%clk 0:00:11]} 33. d5 {[%clk 0:00:18]}  Nf4 {[%clk 0:00:03]} 34. Qf8# {[%clk 0:00:18]} 1-0


[Site "https://www.chess.com"]

[Event "Titled Tuesday Blitz August 09 Late 2022"]
[White "Shimanov, Aleksandr"]
[Black "Alekseenko, Kirill"]
[WhiteFideId "4198603"]
[BlackFideId "4135539"]
[WhiteElo "2605"]
[BlackElo "2682"]
[Result "0-1"]
[Round "11"]
[TimeControl "180+1"]
[Date "2022.08.09"]
[WhiteClock "0:00:01"]
[BlackClock "0:00:18"]

1. e4 {[%clk 0:03:00]}  e5 {[%clk 0:03:00]} 2. Nf3 {[%clk 0:03:00]}  Nc6 {[%clk 0:03:00]} 3. Nc3 {[%clk 0:03:01]}  Nf6 {[%clk 0:03:00]} 4. h3 {[%clk 0:03:02]}  Bb4 {[%clk 0:02:45]} 5. Nd5 {[%clk 0:03:02]}  O-O {[%clk 0:02:43]} 6. c3 {[%clk 0:02:59]}  Be7 {[%clk 0:02:42]} 7. d3 {[%clk 0:02:48]}  d6 {[%clk 0:02:41]} 8. Nxe7+ {[%clk 0:02:47]}  Nxe7 {[%clk 0:02:42]} 9. g3 {[%clk 0:02:46]}  h6 {[%clk 0:02:32]} 10. Bg2 {[%clk 0:02:45]}  Nh7 {[%clk 0:02:30]} 11. Nh4 {[%clk 0:02:16]}  c6 {[%clk 0:02:08]} 12. O-O {[%clk 0:02:08]}  g5 {[%clk 0:02:08]} 13. f4 {[%clk 0:01:53]}  gxh4 {[%clk 0:01:50]} 14. f5 {[%clk 0:01:53]}  hxg3 {[%clk 0:01:27]} 15. Bxh6 {[%clk 0:01:47]}  Kh8 {[%clk 0:01:22]} 16. Qh5 {[%clk 0:01:21]}  f6 {[%clk 0:01:16]} 17. Rf3 {[%clk 0:01:03]}  Rg8 {[%clk 0:01:08]} 18. Re1 {[%clk 0:01:03]}  d5 {[%clk 0:00:56]} 19. Ree3 {[%clk 0:01:00]}  dxe4 {[%clk 0:00:52]} 20. Rxe4 {[%clk 0:00:44]}  Bxf5 {[%clk 0:00:45]} 21. Rxf5 {[%clk 0:00:38]}  Nxf5 {[%clk 0:00:44]} 22. Qxf5 {[%clk 0:00:39]}  Qxd3 {[%clk 0:00:40]} 23. Qf1 {[%clk 0:00:01]}  Qxf1+ {[%clk 0:00:37]} 24. Kxf1 {[%clk 0:00:02]}  Rad8 {[%clk 0:00:35]} 25. Ke2 {[%clk 0:00:02]}  Rge8 {[%clk 0:00:21]} 26. Rh4 {[%clk 0:00:02]}  f5 {[%clk 0:00:20]} 27. Be3 {[%clk 0:00:03]}  Kg7 {[%clk 0:00:17]} 28. Bxa7 {[%clk 0:00:03]}  Nf6 {[%clk 0:00:16]} 29. Be3 {[%clk 0:00:02]}  f4 {[%clk 0:00:17]} 30. Bc1 {[%clk 0:00:02]}  Rh8 {[%clk 0:00:17]} 31. Rxh8 {[%clk 0:00:02]}  Rxh8 {[%clk 0:00:18]} 32. a4 {[%clk 0:00:01]}  Kg6 {[%clk 0:00:18]} 0-1


[Site "https://www.chess.com"]

[Event "Titled Tuesday Blitz August 09 Late 2022"]
[White "Voege, Tobias"]
[Black "Tanenbaum, Zachary"]
[WhiteFideId "1270513"]
[BlackFideId "2060850"]
[WhiteElo "2360"]
[BlackElo "2175"]
[Result "1-0"]
[Round "11"]
[TimeControl "180+1"]
[Date "2022.08.09"]
[WhiteClock "0:00:09"]
[BlackClock "0:00:12"]

1. e4 {[%clk 0:03:00]}  e5 {[%clk 0:03:00]} 2. Nf3 {[%clk 0:03:00]}  Nc6 {[%clk 0:03:00]} 3. d4 {[%clk 0:02:59]}  exd4 {[%clk 0:03:00]} 4. Nxd4 {[%clk 0:02:59]}  Bc5 {[%clk 0:03:01]} 5. Be3 {[%clk 0:03:00]}  Qf6 {[%clk 0:03:00]} 6. Nb5 {[%clk 0:02:58]}  Bxe3 {[%clk 0:02:59]} 7. fxe3 {[%clk 0:02:59]}  Qh4+ {[%clk 0:02:54]} 8. g3 {[%clk 0:02:59]}  Qxe4 {[%clk 0:02:48]} 9. Nxc7+ {[%clk 0:02:59]}  Kd8 {[%clk 0:02:48]} 10. Nxa8 {[%clk 0:02:59]}  Qxh1 {[%clk 0:02:45]} 11. Qd6 {[%clk 0:02:58]}  Nf6 {[%clk 0:02:34]} 12. Nd2 {[%clk 0:02:55]}  Qd5 {[%clk 0:02:30]} 13. Qc7+ {[%clk 0:02:55]}  Ke7 {[%clk 0:02:30]} 14. O-O-O {[%clk 0:02:48]}  Qe5 {[%clk 0:02:28]} 15. Nc4 {[%clk 0:02:44]}  Qxc7 {[%clk 0:02:21]} 16. Nxc7 {[%clk 0:02:45]}  Kd8 {[%clk 0:01:43]} 17. Nb5 {[%clk 0:02:36]}  d5 {[%clk 0:01:37]} 18. Bg2 {[%clk 0:01:55]}  Bg4 {[%clk 0:01:32]} 19. Rd2 {[%clk 0:01:50]}  Ke7 {[%clk 0:00:58]} 20. Bxd5 {[%clk 0:01:26]}  Nxd5 {[%clk 0:00:59]} 21. Rxd5 {[%clk 0:01:26]}  Be6 {[%clk 0:00:57]} 22. Rc5 {[%clk 0:01:27]}  Nb4 {[%clk 0:00:55]} 23. Rc7+ {[%clk 0:00:56]}  Kf6 {[%clk 0:00:55]} 24. Nbd6 {[%clk 0:00:36]}  Rb8 {[%clk 0:00:24]} 25. Nd2 {[%clk 0:00:18]}  Nxa2+ {[%clk 0:00:14]} 26. Kb1 {[%clk 0:00:19]}  Rd8 {[%clk 0:00:06]} 27. N6e4+ {[%clk 0:00:17]}  Kg6 {[%clk 0:00:05]} 28. b3 {[%clk 0:00:16]}  Nb4 {[%clk 0:00:04]} 29. Rxb7 {[%clk 0:00:16]}  Nd5 {[%clk 0:00:04]} 30. Nf3 {[%clk 0:00:14]}  Bf5 {[%clk 0:00:03]} 31. Nh4+ {[%clk 0:00:13]}  Kh5 {[%clk 0:00:03]} 32. Nxf5 {[%clk 0:00:14]}  Kg4 {[%clk 0:00:03]} 33. Nxg7 {[%clk 0:00:11]}  Kf3 {[%clk 0:00:04]} 34. Ng5+ {[%clk 0:00:10]}  Kxe3 {[%clk 0:00:04]} 35. Nxf7 {[%clk 0:00:10]}  Rf8 {[%clk 0:00:04]} 36. Ne6 {[%clk 0:00:10]}  Rc8 {[%clk 0:00:04]} 37. Nd6 {[%clk 0:00:09]}  Rc6 {[%clk 0:00:04]} 38. Nc4+ {[%clk 0:00:09]}  Ke2 {[%clk 0:00:04]} 39. Nd4+ {[%clk 0:00:10]}  Kd1 {[%clk 0:00:04]} 40. Nxc6 {[%clk 0:00:10]}  Nc3+ {[%clk 0:00:05]} 41. Kb2 {[%clk 0:00:11]}  Ne4 {[%clk 0:00:06]} 42. Rd7+ {[%clk 0:00:11]}  Ke2 {[%clk 0:00:06]} 43. Re7 {[%clk 0:00:12]}  Kf3 {[%clk 0:00:07]} 44. Nd4+ {[%clk 0:00:11]}  Kg4 {[%clk 0:00:07]} 45. Rxe4+ {[%clk 0:00:12]}  Kh3 {[%clk 0:00:07]} 46. Rh4+ {[%clk 0:00:12]}  Kg2 {[%clk 0:00:07]} 47. Rxh7 {[%clk 0:00:12]}  Kh1 {[%clk 0:00:08]} 48. g4 {[%clk 0:00:11]}  Kg1 {[%clk 0:00:09]} 49. g5 {[%clk 0:00:12]}  Kh1 {[%clk 0:00:10]} 50. g6 {[%clk 0:00:13]}  a5 {[%clk 0:00:11]} 51. g7 {[%clk 0:00:14]}  a4 {[%clk 0:00:12]} 52. bxa4 {[%clk 0:00:12]}  Kg2 {[%clk 0:00:11]} 53. g8=Q+ {[%clk 0:00:12]}  Kh1 {[%clk 0:00:12]} 54. Qd5+ {[%clk 0:00:12]}  Kg1 {[%clk 0:00:12]} 55. Ne2+ {[%clk 0:00:11]}  Kf2 {[%clk 0:00:12]} 56. Rf7+ {[%clk 0:00:11]}  Ke1 {[%clk 0:00:12]} 57. Qd2# {[%clk 0:00:09]} 1-0


[Site "https://www.chess.com"]